bitfinex-derivatives/quotes_SOLF0:USTF0_20250404
["timestamp","ask_amount","ask_price","bid_price","bid_amount"]
[1743754392705,8.4345,118.57,118.56,0.06373109]
[1743754393506,0.06241193,118.59,118.56,8.49873109]
[1743754394401,8.434,118.58,118.56,8.49873109]
[1743754394710,0.06241193,118.59,118.56,0.06373109]
[1743754395102,8.4345,118.57,118.56,0.06373109]
[1743754401515,8.4342,118.58,118.56,0.06373109]
[1743754402013,8.4342,118.58,118.56,8.49843109]
[1743754403704,0.06241193,118.59,118.56,8.49843109]
[1743754403904,0.06241193,118.59,118.56,0.06373109]
[1743754404515,0.06241193,118.59,118.58,8.4337]
[1743754405116,0.06241193,118.59,118.57,8.4342]
[1743754405414,8.49581193,118.59,118.57,8.4342]
[1743754405613,0.06241193,118.59,118.56,15.12543109]
[1743754406017,0.06241193,118.59,118.56,4.36633109]
[1743754406317,0.06241193,118.59,118.56,0.06373109]
[1743754407722,9.50011147,118.59,118.56,0.06373109]
[1743754407922,8.4345,118.57,118.56,0.06373109]
[1743754408519,8.4339,118.58,118.56,8.49893109]
[1743754409522,0.06241193,118.59,118.56,0.06373109]
[1743754410125,8.4345,118.57,118.56,0.06373109]
[1743754412636,8.4342,118.58,118.56,8.49873109]
[1743754412929,8.4342,118.58,118.56,17.93643063]
[1743754413233,0.06241193,118.59,118.57,9.43769954]
[1743754413532,0.06241193,118.59,118.58,9.43769954]
[1743754413729,0.06241193,118.59,118.58,17.87139954]
[1743754416432,0.06241193,118.59,118.58,9.43769954]
[1743754416934,0.06241193,118.59,118.58,8.4337]
[1743754417231,0.06241193,118.59,118.58,17.87139954]
[1743754419734,8.4314,118.62,118.58,9.43769954]
[1743754419935,8.4314,118.62,118.59,9.43769954]
[1743754420135,11.60969954,118.64,118.59,9.43769954]
[1743754420336,8.4316,118.61,118.59,17.87039954]
[1743754420938,0.05426929,118.61,118.6,8.4323]
[1743754421837,8.48586929,118.61,118.59,17.93371197]
[1743754422835,0.05426929,118.61,118.59,17.93371197]
[1743754423337,8.48586929,118.61,118.59,17.93371197]
[1743754423932,0.05426929,118.61,118.6,8.4323]
[1743754426646,33.791,118.67,118.6,40.91769954]
[1743754426849,9.43769954,118.67,118.62,9.43769954]
[1743754427035,9.43769954,118.68,118.63,9.43769954]
[1743754427242,2.1383,118.69,118.66,9.43769954]
[1743754427442,131.25122984,118.71,118.66,9.43769954]
[1743754427443,58.55065584,118.71,118.66,9.43769954]
[1743754427840,8.4263,118.69,118.67,0.06422008]
[1743754428044,0.06049343,118.7,118.67,0.06422008]
[1743754428246,8.4259,118.69,118.67,0.06422008]
[1743754429349,8.4266,118.68,118.67,0.06422008]
[1743754429542,0.06049343,118.7,118.67,0.06422008]
[1743754430444,8.4266,118.68,118.67,0.06422008]
[1743754430853,17.86429954,118.68,118.67,0.06422008]
[1743754431245,8.4307,118.63,118.56,16.8693]
[1743754431444,9.43769954,118.65,118.61,9.43769954]
[1743754431641,9.43769954,118.66,118.6,31.48]
[1743754431847,8.4298,118.64,118.62,17.86829954]
[1743754432550,0.05789504,118.64,118.62,9.50170299]
[1743754433050,8.48769504,118.64,118.62,17.93230299]
[1743754433450,0.05789504,118.64,118.62,9.50170299]
[1743754433651,0.05789504,118.64,118.63,17.86789954]
[1743754434349,0.05789504,118.64,118.63,49.34789954]
[1743754434751,8.4276,118.67,118.65,8.4284]
[1743754434945,8.4269,118.68,118.63,33.7609]
[1743754435144,8.4269,118.68,118.66,9.43769954]
[1743754435350,8.4269,118.68,118.66,17.86549954]
[1743754435854,8.48469283,118.68,118.66,17.92812398]
[1743754436055,8.48469283,118.68,118.66,9.50032398]
[1743754436749,8.4274,118.67,118.66,9.50032398]
[1743754436950,8.4274,118.67,118.66,0.06262444]
[1743754438449,8.48489283,118.68,118.66,0.06262444]
[1743754438757,0.05779283,118.68,118.66,0.06262444]
[1743754439757,8.4274,118.67,118.66,0.06262444]
[1743754442957,8.48489283,118.68,118.66,0.06262444]
[1743754445660,0.05779283,118.68,118.66,0.06262444]
[1743754445859,0.05779283,118.68,118.66,31.52262444]
[1743754446159,8.48449283,118.68,118.66,31.52262444]
[1743754446560,0.05779283,118.68,118.66,0.06262444]
[1743754446753,8.4274,118.67,118.66,0.06262444]
[1743754452356,8.4274,118.67,118.66,2.444e-05]
[1743754452552,10.7774,118.67,118.66,2.444e-05]
[1743754452752,42.2374,118.67,118.66,2.444e-05]
[1743754453158,8.4274,118.67,118.66,2.444e-05]
[1743754455766,8.4323,118.6,118.59,31.46]
[1743754456162,14.71940347,118.64,118.56,14.71940347]
[1743754456366,14.71940347,118.62,118.54,16.96620347]
[1743754456666,2.3416,118.61,118.54,2.2468]
[1743754456965,8.4356,118.56,118.54,2.2468]
[1743754457265,8.4356,118.56,118.54,10.6831]
[1743754457565,8.49993701,118.56,118.54,2.30379276]
[1743754457873,2.3416,118.61,118.54,17.02319623]
[1743754458066,31.46,118.62,118.56,14.71940347]
[1743754458867,8.4326,118.6,118.57,8.4338]
[1743754459058,8.4326,118.6,118.58,0.05426162]
[1743754459461,8.433,118.59,118.58,0.05426162]
[1743754459966,8.4327,118.6,118.58,0.05426162]
[1743754460167,8.4327,118.6,118.58,9.48841916]
[1743754460860,8.433,118.59,118.58,9.48841916]
[1743754461063,0.06476418,118.61,118.58,0.05426162]
[1743754461262,8.4326,118.6,118.58,0.05426162]
[1743754461567,0.06476418,118.61,118.58,0.05426162]
[1743754461867,8.433,118.59,118.58,0.05426162]
[1743754462865,17.86715754,118.59,118.58,0.05426162]
[1743754463869,8.433,118.59,118.58,0.05426162]
[1743754464668,17.86715754,118.59,118.58,0.05426162]
[1743754465168,17.86715754,118.59,118.58,6.162e-05]
[1743754466171,8.4373,118.53,118.51,9.43415754]
[1743754466569,9.43415754,118.55,118.51,9.43415754]
[1743754466761,9.43415754,118.54,118.5,526.17415754]
[1743754466964,9.43415754,118.54,118.5,40.89415754]
[1743754467165,0.05577625,118.53,118.51,0.05568427]
[1743754468071,0.05577625,118.53,118.51,8.49438427]
[1743754468671,8.49337625,118.53,118.51,8.49438427]
[1743754469170,0.05577625,118.53,118.51,0.05568427]
[1743754469365,8.438,118.52,118.51,0.05568427]
[1743754471870,0.05577625,118.53,118.51,0.05568427]
[1743754472671,0.05577625,118.53,118.52,8.438]
[1743754473268,0.05577625,118.53,118.51,0.05568427]
[1743754473672,8.49317625,118.53,118.51,8.49398427]
[1743754473874,0.05577625,118.53,118.51,0.05568427]
[1743754474068,0.05577625,118.53,118.51,14.81329175]
[1743754474474,8.4345,118.57,118.54,8.4363]
[1743754474672,48.43890748,118.59,118.54,8.4363]
[1743754474870,8.4355,118.56,118.54,8.4363]
[1743754475571,8.49176837,118.56,118.54,8.49676002]
[1743754475771,0.05626837,118.56,118.55,8.4359]
[1743754476166,8.49176837,118.56,118.54,0.06046002]
[1743754476371,8.49176837,118.56,118.54,8.49696002]
[1743754476775,8.49176837,118.56,118.54,0.06046002]
[1743754476973,8.4359,118.55,118.54,0.06046002]
[1743754477774,8.49176837,118.56,118.54,0.06046002]
[1743754478178,0.05626837,118.56,118.54,8.49696002]
[1743754478777,8.49176837,118.56,118.54,8.49696002]
[1743754479178,8.49176837,118.56,118.54,0.06046002]
[1743754479677,8.49176837,118.56,118.54,8.49696002]
[1743754479979,46.29387585,118.56,118.46,6.7534]
[1743754480278,14.75760748,118.54,118.46,21.51100748]
[1743754480481,8.4402,118.49,118.46,21.51100748]
[1743754480772,31.46,118.53,118.46,21.51100748]
[1743754480974,8.4396,118.5,118.47,8.4413]
[1743754481176,8.4396,118.5,118.48,0.05711271]
[1743754481377,8.50228503,118.51,118.48,0.05711271]
[1743754481577,8.50228503,118.51,118.48,8.49791271]
[1743754482078,0.06328503,118.51,118.48,0.05711271]
[1743754482279,0.06328503,118.51,118.5,8.4394]
[1743754483176,0.06328503,118.51,118.48,46.29472019]
[1743754483481,0.06328503,118.51,118.48,0.05711271]
[1743754483776,8.4401,118.5,118.48,0.05711271]
[1743754484079,0.06328503,118.51,118.48,0.05711271]
[1743754484483,0.06328503,118.51,118.48,14.81472019]
[1743754484975,0.06328503,118.51,118.49,8.4397]
[1743754485692,0.06328503,118.51,118.48,14.81472019]
[1743754487488,8.50208503,118.51,118.49,8.4399]
[1743754487685,0.06328503,118.51,118.48,14.81472019]
[1743754487885,8.4369,118.54,118.51,8.4382]
[1743754488087,8.4369,118.54,118.5,14.75760748]
[1743754488289,8.4369,118.54,118.51,2.2423]
[1743754488489,8.4369,118.54,118.51,10.6807]
[1743754489094,8.49350644,118.54,118.51,10.73539344]
[1743754489295,8.4373,118.53,118.51,10.73539344]
[1743754490292,8.438,118.52,118.51,2.29699344]
[1743754491189,8.438,118.52,118.51,0.05469344]
[1743754491991,8.4405,118.49,118.47,10.6397]
[1743754492187,46.21760748,118.54,118.47,2.1985]
[1743754492487,46.21760748,118.54,118.48,8.4407]
[1743754492790,8.4392,118.51,118.48,8.4407]
[1743754493097,8.49900511,118.51,118.48,8.50477322]
[1743754493691,8.49900511,118.51,118.48,0.06407322]
[1743754493897,8.49900511,118.51,118.49,8.44]
[1743754494291,8.4395,118.5,118.48,0.06407322]
[1743754494494,8.4395,118.5,118.48,8.50447322]
[1743754494898,8.4402,118.49,118.48,0.06407322]
[1743754497795,8.4402,118.49,118.48,7.322e-05]
[1743754502598,8.4398,118.5,118.48,7.322e-05]
[1743754503002,8.4398,118.5,118.48,8.44087322]
[1743754503303,0.05980511,118.51,118.48,7.322e-05]
[1743754505005,8.4399,118.5,118.48,7.322e-05]
[1743754506206,0.05980511,118.51,118.48,7.322e-05]
[1743754506903,8.4402,118.49,118.48,7.322e-05]
[1743754507405,8.4397,118.5,118.48,7.322e-05]
[1743754507606,8.4397,118.5,118.48,8.44067322]
[1743754507808,8.4397,118.5,118.48,7.322e-05]
[1743754508204,0.05980511,118.51,118.48,7.322e-05]
[1743754509211,8.4401,118.5,118.48,7.322e-05]
[1743754509811,0.05980511,118.51,118.48,7.322e-05]
[1743754510411,8.4399,118.5,118.48,7.322e-05]
[1743754511113,0.05980511,118.51,118.48,14.7576807]
[1743754511315,2.2823,118.55,118.49,31.48]
[1743754511613,8.4369,118.54,118.51,8.4384]
[1743754511913,8.4369,118.54,118.49,31.48]
[1743754512113,8.4363,118.55,118.5,14.75760748]
[1743754512515,8.4363,118.55,118.53,8.4372]
[1743754512817,0.06482756,118.54,118.51,0.05588962]
[1743754513314,8.438,118.52,118.51,0.05588962]
[1743754517911,0.06482756,118.54,118.51,0.05588962]
[1743754518418,8.438,118.52,118.51,0.05588962]
[1743754519112,8.4378,118.53,118.51,0.05588962]
[1743754519613,8.4375,118.53,118.51,8.49428962]
[1743754519919,0.06482756,118.54,118.51,8.49428962]
[1743754520410,8.4376,118.53,118.51,8.49428962]
[1743754525023,8.50172756,118.54,118.52,8.4376]
[1743754525322,0.06482756,118.54,118.51,0.05588962]
[1743754525719,8.4374,118.53,118.51,8.49438962]
[1743754526924,0.06482756,118.54,118.52,8.4376]
[1743754527622,8.50182756,118.54,118.52,8.4376]
[1743754527822,8.50182756,118.54,118.51,8.49418962]
[1743754528022,0.06482756,118.54,118.51,8.49418962]
[1743754528723,8.4374,118.53,118.51,8.49418962]
[1743754528916,0.06482756,118.54,118.51,8.49418962]
[1743754529426,8.4376,118.53,118.51,8.49418962]
[1743754530326,0.06482756,118.54,118.51,0.05588962]
[1743754531925,14.75760748,118.53,118.46,36.0349]
[1743754532228,8.4405,118.49,118.47,8.4412]
[1743754532530,8.4397,118.5,118.48,8.4409]
[1743754532829,4.4826,118.53,118.47,14.75760748]
[1743754533132,0.05965024,118.5,118.48,0.05748131]
[1743754533624,14.75760748,118.55,118.49,31.44]
[1743754533929,31.44,118.56,118.49,46.19760748]
[1743754534119,8.4376,118.53,118.49,46.19760748]
[1743754534525,31.44,118.56,118.49,46.19760748]
[1743754534725,0.05503331,118.52,118.51,23.19600748]
[1743754534928,4.6193,118.59,118.51,14.75760748]
[1743754535128,2.3275,118.59,118.53,14.75760748]
[1743754535329,2.3275,118.59,118.54,8.4363]
[1743754535330,8.4349,118.57,118.54,8.4363]
[1743754536033,8.4353,118.56,118.53,46.19760748]
[1743754536336,8.4353,118.56,118.54,0.06428826]
[1743754536731,8.4912641,118.57,118.54,8.50058826]
[1743754537032,8.4912641,118.57,118.54,0.06428826]
[1743754537230,0.0564641,118.57,118.54,0.06428826]
[1743754537426,8.4352,118.56,118.54,0.06428826]
[1743754537832,0.0564641,118.57,118.54,0.06428826]
[1743754538031,8.4912641,118.57,118.54,8.50058826]
[1743754538334,0.0564641,118.57,118.54,8.50058826]
[1743754539032,8.4913641,118.57,118.54,8.50058826]
[1743754539929,0.0564641,118.57,118.55,8.4358]
[1743754541231,8.4910641,118.57,118.55,8.4358]
[1743754541641,8.4910641,118.57,118.54,8.50058826]
[1743754541843,8.4352,118.56,118.54,8.50058826]
[1743754542045,0.0564641,118.57,118.54,8.50058826]
[1743754542244,8.4915641,118.57,118.54,8.50058826]
[1743754542743,8.4352,118.56,118.54,8.50058826]
[1743754542943,0.0564641,118.57,118.54,8.50058826]
[1743754543244,0.0564641,118.57,118.55,8.4358]
[1743754543633,0.0564641,118.57,118.54,0.06428826]
[1743754544639,2.3028,118.62,118.55,14.75760748]
[1743754544840,48.35810748,118.65,118.57,14.75760748]
[1743754545444,48.35810748,118.65,118.59,8.4328]
[1743754545445,8.4315,118.62,118.59,8.4328]
[1743754545643,16.91810748,118.65,118.59,8.4328]
[1743754545846,0.05636866,118.62,118.59,31.49975139]
[1743754546145,0.05636866,118.62,118.59,46.25735887]
[1743754546639,0.05636866,118.62,118.6,8.4317]
[1743754546842,0.05636866,118.62,118.59,31.49975139]
[1743754547147,8.48746866,118.62,118.59,39.93235139]
[1743754547651,0.05636866,118.62,118.6,8.4318]
[1743754548345,143.83203732,118.74,118.6,14.75760748]
[1743754548548,48.31530748,118.71,118.62,14.75760748]
[1743754548739,8.428,118.67,118.62,46.17760748]
[1743754548941,33.5577,118.71,118.62,46.17760748]
[1743754549236,16.93660748,118.7,118.62,46.17760748]
[1743754549441,2.179,118.7,118.62,46.17760748]
[1743754549642,0.05961108,118.67,118.65,0.0615234]
[1743754549946,8.48731108,118.67,118.65,0.0615234]
[1743754550547,8.4281,118.66,118.65,0.0615234]
[1743754551350,0.05961108,118.67,118.65,0.0615234]
[1743754551945,8.4281,118.66,118.65,0.0615234]
[1743754553751,8.48721108,118.67,118.65,0.0615234]
[1743754553950,0.05961108,118.67,118.65,0.0615234]
[1743754554357,0.05961108,118.67,118.65,14.81913088]
[1743754554848,0.05961108,118.67,118.65,23.24753088]
[1743754555063,0.05961108,118.67,118.65,0.0615234]
[1743754555851,8.4281,118.66,118.65,0.0615234]
[1743754557952,8.48731108,118.67,118.65,0.0615234]
[1743754558152,0.05961108,118.67,118.65,32.0215234]
[1743754558550,0.05961108,118.67,118.65,40.4499234]
[1743754559151,8.48711108,118.67,118.65,32.0215234]
[1743754559449,0.05961108,118.67,118.65,32.0215234]
[1743754559654,0.05961108,118.67,118.65,40.4498234]
[1743754560653,8.48741108,118.67,118.65,32.0215234]
[1743754561056,0.05961108,118.67,118.65,0.0615234]
[1743754561455,8.4281,118.66,118.65,0.0615234]
[1743754561656,0.05961108,118.67,118.65,0.0615234]
[1743754562149,0.05961108,118.67,118.65,14.81913088]
[1743754562355,0.05961108,118.67,118.65,0.0615234]
[1743754562553,0.05961108,118.67,118.65,8.4900234]
[1743754563051,0.05961108,118.67,118.65,0.0615234]
[1743754563649,8.48701108,118.67,118.65,0.0615234]
[1743754563855,0.05961108,118.67,118.65,0.0615234]
[1743754564257,0.05961108,118.67,118.65,8.4899234]
[1743754564852,0.05961108,118.67,118.65,0.0615234]
[1743754565354,8.4281,118.66,118.65,0.0615234]
[1743754566455,8.48711108,118.67,118.65,0.0615234]
[1743754566755,0.05961108,118.67,118.65,0.0615234]
[1743754567156,8.4281,118.66,118.65,0.0615234]
[1743754567557,8.48731108,118.67,118.65,0.0615234]
[1743754568357,8.4281,118.66,118.65,0.0615234]
[1743754571352,31.98,118.66,118.59,4.5461]
[1743754571656,2.2397,118.65,118.6,8.4317]
[1743754571958,34.288,118.66,118.6,14.75760748]
[1743754572158,2.308,118.66,118.6,14.75760748]
[1743754572661,0.05782116,118.64,118.62,0.05892003]
[1743754573552,8.4302,118.63,118.62,0.05892003]
[1743754576957,8.48772116,118.64,118.62,0.05892003]
[1743754577254,0.05782116,118.64,118.62,0.05892003]
[1743754577451,0.05782116,118.64,118.62,8.48942003]
[1743754577654,0.05782116,118.64,118.62,0.05892003]
[1743754577960,8.48762116,118.64,118.62,0.05892003]
[1743754578558,8.4302,118.63,118.62,0.05892003]
[1743754590060,8.4302,118.63,118.62,2.003e-05]
[1743754598066,0.05782116,118.64,118.62,9.42859815]
[1743754598266,9.42857812,118.68,118.63,9.42857812]
[1743754598468,9.42857812,118.68,118.63,17.85847812]
[1743754598671,8.4288,118.65,118.63,9.42857812]
[1743754599372,8.48347689,118.65,118.63,9.4844093]
[1743754599572,9.42857812,118.64,118.59,9.42857812]
[1743754599875,9.42857812,118.62,118.57,46.02527812]
[1743754600170,9.42857812,118.6,118.55,41.38857812]
[1743754600566,8.4345,118.57,118.55,41.38857812]
[1743754600772,8.4345,118.57,118.56,0.05431534]
[1743754601176,8.4341,118.58,118.56,9.48289346]
[1743754601374,0.05811797,118.59,118.56,9.48289346]
[1743754601675,0.05811797,118.59,118.56,0.05431534]
[1743754602675,8.4337,118.58,118.56,0.05431534]
[1743754602876,0.05811797,118.59,118.56,0.05431534]
[1743754603771,8.4345,118.57,118.56,0.05431534]
[1743754608680,8.4345,118.57,118.56,1.534e-05]
[1743754610374,8.434,118.58,118.56,1.534e-05]
[1743754610676,0.05811797,118.59,118.56,1.534e-05]
[1743754611479,8.49151797,118.59,118.56,40.39521534]
[1743754611874,0.05811797,118.59,118.56,31.96001534]
[1743754612074,8.4339,118.58,118.56,31.96001534]
[1743754612479,0.05811797,118.59,118.56,31.96001534]
[1743754613382,0.05811797,118.59,118.57,8.4342]
[1743754614485,0.05811797,118.59,118.57,8.4345]
[1743754614983,0.05811797,118.59,118.56,31.96001534]
[1743754615182,0.05811797,118.59,118.58,8.4337]
[1743754615385,0.05811797,118.59,118.56,31.96001534]
[1743754615577,0.05811797,118.59,118.56,40.39481534]
[1743754615776,0.05811797,118.59,118.56,1.534e-05]
[1743754616083,8.4341,118.58,118.56,8.43501534]
[1743754616387,0.05811797,118.59,118.56,8.43501534]
[1743754616884,8.49151797,118.59,118.56,8.43501534]
[1743754617386,8.4338,118.58,118.56,8.43501534]
[1743754617585,8.4338,118.58,118.56,1.534e-05]
[1743754618587,0.05811797,118.59,118.56,1.534e-05]
[1743754619088,8.4342,118.58,118.56,1.534e-05]
[1743754619290,0.05811797,118.59,118.56,1.534e-05]
[1743754619684,0.05811797,118.59,118.57,8.4341]
[1743754620184,0.05811797,118.59,118.56,8.43481534]
[1743754620385,0.05811797,118.59,118.56,1.534e-05]
[1743754623093,14.74220311,118.57,118.56,1.534e-05]
[1743754623491,8.4371,118.54,118.4,381.3393]
[1743754623692,16.8646,118.61,118.4,381.3393]
[1743754623693,14.74220311,118.55,118.49,31.8]
[1743754623994,14.74220311,118.53,118.45,46.54220311]
[1743754624190,31.78,118.53,118.45,53.20560311]
[1743754624394,46.54220311,118.55,118.47,14.74220311]
[1743754624585,46.54220311,118.55,118.48,31.82]
[1743754624790,0.06191706,118.52,118.5,8.49429915]
[1743754624987,0.06191706,118.52,118.5,0.05529915]
[1743754625299,8.4387,118.51,118.5,0.05529915]
[1743754627401,8.50031706,118.52,118.5,0.05529915]
[1743754627603,0.06191706,118.52,118.5,8.49469915]
[1743754628503,0.06191706,118.52,118.5,0.05529915]
[1743754628904,0.06191706,118.52,118.5,8.49439915]
[1743754629298,8.49991706,118.52,118.5,8.49439915]
[1743754629500,8.49991706,118.52,118.5,0.05529915]
[1743754632197,1.46847835,118.6,118.54,8.4365]
[1743754632402,2.3199,118.61,118.54,31.76]
[1743754632606,2.3199,118.61,118.54,46.50220311]
[1743754632906,14.74220311,118.62,118.54,46.50220311]
[1743754633511,8.49493155,118.59,118.57,0.05673516]
[1743754633708,8.49493155,118.59,118.57,31.83673516]
[1743754634109,0.06153155,118.59,118.57,40.27103516]
[1743754634410,0.06153155,118.59,118.57,31.83673516]
[1743754634612,8.49493155,118.59,118.57,31.83673516]
[1743754634812,0.06153155,118.59,118.57,0.05673516]
[1743754635112,23.17590311,118.58,118.57,3.516e-05]
[1743754636410,25.43400311,118.58,118.57,3.516e-05]
[1743754637412,8.4373,118.53,118.52,31.76]
[1743754637713,17.00030311,118.58,118.52,31.76]
[1743754637913,8.436,118.55,118.52,31.76]
[1743754638110,17.00030311,118.58,118.52,40.1976]
[1743754638407,8.4362,118.55,118.52,31.76]
[1743754638611,8.4362,118.55,118.54,0.06498315]
[1743754644108,8.49920911,118.56,118.54,0.06498315]
[1743754644314,0.06370911,118.56,118.54,0.06498315]
[1743754644511,0.06370911,118.56,118.55,8.4359]
[1743754644712,0.06370911,118.56,118.54,0.06498315]
[1743754645311,0.06370911,118.56,118.54,8.50118315]
[1743754646214,0.06370911,118.56,118.54,0.06498315]
[1743754646509,8.4359,118.55,118.54,0.06498315]
[1743754648412,8.4359,118.55,118.54,8.315e-05]
[1743754651618,0.06370911,118.56,118.54,8.315e-05]
[1743754652112,8.49940911,118.56,118.54,8.315e-05]
[1743754652316,0.06370911,118.56,118.54,8.315e-05]
[1743754652821,8.49920911,118.56,118.54,8.315e-05]
[1743754653019,0.06370911,118.56,118.55,8.4359]
[1743754653213,0.06370911,118.56,118.54,8.315e-05]
[1743754653819,8.49940911,118.56,118.54,8.315e-05]
[1743754654417,8.4359,118.55,118.54,8.315e-05]
[1743754654818,0.06370911,118.56,118.54,8.315e-05]
[1743754655020,8.49930911,118.56,118.54,8.315e-05]
[1743754655322,0.06370911,118.56,118.54,8.315e-05]
[1743754656121,0.06370911,118.56,118.55,8.4359]
[1743754656421,0.06370911,118.56,118.54,8.315e-05]
[1743754656622,0.06370911,118.56,118.55,8.4359]
[1743754657020,0.06370911,118.56,118.55,39.9559]
[1743754658318,0.06370911,118.56,118.55,31.52]
[1743754658518,0.06370911,118.56,118.54,8.43628315]
[1743754659721,8.49890911,118.56,118.54,8.43628315]
[1743754660025,0.06370911,118.56,118.54,8.315e-05]
[1743754660322,8.4359,118.55,118.54,8.315e-05]
[1743754662326,8.49920911,118.56,118.54,8.315e-05]
[1743754663025,8.4359,118.55,118.54,8.315e-05]
[1743754664128,8.49930911,118.56,118.54,8.315e-05]
[1743754664524,8.49930911,118.56,118.54,8.43648315]
[1743754664821,8.49930911,118.56,118.54,8.315e-05]
[1743754665021,8.49930911,118.56,118.54,8.43668315]
[1743754666228,0.06370911,118.56,118.54,8.43668315]
[1743754666421,0.06370911,118.56,118.55,8.4359]
[1743754667726,0.06370911,118.56,118.54,40.09638315]
[1743754668127,0.06370911,118.56,118.54,31.66008315]
[1743754668428,0.06370911,118.56,118.55,8.4359]
[1743754671026,0.06370911,118.56,118.54,40.09628315]
[1743754671226,0.06370911,118.56,118.54,31.66008315]
[1743754671535,0.06370911,118.56,118.54,40.09618315]
[1743754671921,0.06370911,118.56,118.54,31.66008315]
[1743754672227,0.06370911,118.56,118.55,8.4359]
[1743754674532,8.4333,118.59,118.57,8.4341]
[1743754675229,8.4339,118.58,118.56,8.4349]
[1743754675433,17.04010311,118.61,118.54,31.66]
[1743754675630,0.06328822,118.58,118.56,0.0606705]
[1743754676335,0.06328822,118.58,118.56,8.4953705]
[1743754676528,0.06328822,118.58,118.56,0.0606705]
[1743754676729,33.7672,118.64,118.56,14.80287361]
[1743754676930,8.4319,118.61,118.58,8.4333]
[1743754677130,14.74220311,118.61,118.55,31.56]
[1743754677527,8.4335,118.59,118.56,8.4348]
[1743754677733,16.94860311,118.63,118.55,31.56]
[1743754677932,8.48969512,118.59,118.56,8.49242466]
[1743754678539,8.434,118.58,118.56,0.05762466]
[1743754678736,0.05639512,118.59,118.56,0.05762466]
[1743754679135,8.4345,118.57,118.56,0.05762466]
[1743754680542,23.17670311,118.57,118.56,0.05762466]
[1743754680841,8.4364,118.55,118.52,8.4377]
[1743754681841,8.49563491,118.55,118.52,8.49942066]
[1743754682037,8.49563491,118.55,118.52,0.06172066]
[1743754682038,0.05923491,118.55,118.52,0.06172066]
[1743754682239,31.65923491,118.55,118.52,0.06172066]
[1743754682643,14.74220311,118.53,118.44,485.6]
[1743754682942,31.6,118.52,118.45,46.34220311]
[1743754683144,8.4391,118.51,118.47,23.18340311]
[1743754683742,8.4402,118.49,118.46,40.0219]
[1743754684036,8.4402,118.49,118.48,0.05947877]
[1743754684838,0.05632164,118.5,118.48,0.05947877]
[1743754685946,0.05632164,118.5,118.48,8.50007877]
[1743754686645,0.05632164,118.5,118.49,8.4402]
[1743754687146,0.05632164,118.5,118.48,0.05947877]
[1743754687347,8.49582164,118.5,118.48,8.49997877]
[1743754688038,0.05632164,118.5,118.48,8.49997877]
[1743754688244,0.05632164,118.5,118.49,8.4402]
[1743754688746,0.05632164,118.5,118.48,8.49997877]
[1743754688946,8.49582164,118.5,118.48,0.05947877]
[1743754689647,8.4402,118.49,118.48,0.05947877]
[1743754690143,8.49612164,118.5,118.48,0.05947877]
[1743754690547,8.4402,118.49,118.48,0.05947877]
[1743754694953,0.05632164,118.5,118.48,0.05947877]
[1743754695550,8.49582164,118.5,118.48,0.05947877]
[1743754695749,0.05632164,118.5,118.48,0.05947877]
[1743754696653,38.1921,118.56,118.51,8.4384]
[1743754697050,38.1921,118.56,118.49,46.22220311]
[1743754697252,8.4367,118.54,118.51,8.4385]
[1743754697456,8.4367,118.54,118.49,46.22220311]
[1743754697457,2.1408,118.56,118.49,46.22220311]
[1743754697658,10.5765,118.56,118.53,8.4369]
[1743754697957,0.05510607,118.54,118.53,8.4369]
[1743754699452,0.05510607,118.54,118.52,8.4376]
[1743754700145,8.49200607,118.54,118.52,8.4376]
[1743754702657,8.4411,118.48,118.46,8.442]
[1743754703248,8.49516613,118.48,118.46,8.49898644]
[1743754703447,0.05406613,118.48,118.46,8.49898644]
[1743754704158,0.05406613,118.48,118.46,0.05698644]
[1743754704460,0.05406613,118.48,118.46,8.49898644]
[1743754705257,0.05406613,118.48,118.47,8.4416]
[1743754705859,8.4394,118.51,118.48,8.4408]
[1743754706664,8.4383,118.52,118.49,8.4401]
[1743754706964,0.06243922,118.51,118.49,8.4401]
[1743754707161,0.06243922,118.51,118.49,8.49639027]
[1743754707562,8.50113922,118.51,118.49,0.05629027]
[1743754707961,0.06243922,118.51,118.49,0.05629027]
[1743754708262,8.4394,118.5,118.49,0.05629027]
[1743754709265,8.50153922,118.51,118.49,0.05629027]
[1743754709967,8.50153922,118.51,118.49,8.49639027]
[1743754710167,8.50153922,118.51,118.49,31.53629027]
[1743754710168,0.06243922,118.51,118.49,31.53629027]
[1743754710665,0.06243922,118.51,118.5,8.4394]
[1743754711259,4.5072,118.58,118.5,14.74220311]
[1743754711565,4.5072,118.58,118.52,14.74220311]
[1743754711766,4.5072,118.58,118.52,46.44220311]
[1743754711961,8.4355,118.56,118.53,8.437]
[1743754712364,17.03400311,118.6,118.52,46.44220311]